bitfinex/quotes_ETHUSD_20251212
["timestamp","ask_amount","ask_price","bid_price","bid_amount"]
[1765503745180,0.92555884,3245.1,3244.3,0.648]
[1765503745352,1.50603413,3245.1,3244.4,0.9559]
[1765503745553,0.58047529,3245.1,3244.4,0.9559]
[1765503746184,3.08166409,3245.0,3244.4,0.9559]
[1765503746482,6.16332818,3245.0,3244.4,0.9559]
[1765503746879,6.16332818,3245.0,3244.1,3.08246799]
[1765503746880,0.58047529,3244.9,3243.3,0.4526]
[1765503747188,0.58047529,3244.9,3243.1,0.1993]
[1765503747376,7.1146087,3244.5,3243.0,3.08356064]
[1765503747684,0.58047529,3244.4,3243.2,0.489]
[1765503748053,1.50628834,3244.4,3243.2,0.489]
[1765503748470,6.164658,3244.3,3243.2,0.489]
[1765503748880,6.164658,3244.3,3243.2,3.57234612]
[1765503749512,6.164658,3244.3,3243.2,0.489]
[1765503750516,6.164658,3244.3,3243.2,3.75345026]
[1765503750704,6.164658,3244.3,3243.3,0.4526]
[1765503751214,6.164658,3244.3,3243.4,0.489]
[1765503751427,6.164658,3244.3,3243.4,0.51983184]
[1765503751575,6.164658,3244.3,3243.4,0.489]
[1765503752882,3.082329,3244.3,3243.5,0.4526]
[1765503753081,0.58047529,3244.2,3243.5,0.4526]
[1765503753419,3.57059445,3245.1,3243.5,0.4526]
[1765503753580,0.9256845,3244.6,3243.5,0.4526]
[1765503753775,12.90713165,3245.0,3243.6,0.489]
[1765503753981,0.92564451,3244.9,3243.6,0.489]
[1765503754426,0.92564451,3244.9,3243.7,0.489]
[1765503754919,0.58047529,3244.7,3243.7,4.02447509]
[1765503755295,0.58047529,3244.7,3243.8,0.4526]
[1765503757182,0.58047529,3244.5,3243.8,0.4526]
[1765503758713,0.58047529,3244.5,3243.4,3.53572322]
[1765503759212,6.164468,3244.4,3243.4,3.53572322]
[1765503759386,0.58047529,3244.3,3243.5,0.489]
[1765503759586,0.58047529,3244.3,3243.6,0.489]
[1765503760619,0.58047529,3244.1,3243.7,0.489]
[1765503760814,0.58047529,3244.1,3243.2,3.26444564]
[1765503761023,0.58047529,3244.1,3243.3,3.57227422]
[1765503761533,0.58047529,3244.1,3243.3,0.489]
[1765503761690,3.08213439,3244.6,3244.0,0.4669]
[1765503761892,6.16256854,3245.4,3244.5,0.648]
[1765503762096,0.92551315,3245.2,3244.6,0.489]
[1765503762293,3.08128427,3245.4,3244.6,0.489]
[1765503762508,0.58047529,3245.1,3244.6,0.489]
[1765503762708,0.58047529,3245.1,3244.7,0.489]
[1765503763815,0.58047529,3245.1,3244.8,0.489]
[1765503764014,0.58047529,3245.1,3244.9,0.489]
[1765503764218,0.58047529,3245.1,3244.3,0.1811]
[1765503764420,0.58047529,3245.1,3244.4,0.489]
[1765503764594,3.66213754,3245.1,3244.3,0.6496]
[1765503764916,3.66213754,3245.1,3244.4,0.489]
[1765503765116,3.66213754,3245.1,3244.5,0.489]
[1765503765496,6.74379979,3245.1,3244.5,0.489]
[1765503765696,6.74379979,3245.1,3244.3,0.6496]
[1765503765895,6.74379979,3245.1,3244.4,0.489]
[1765503766615,3.66213754,3245.1,3244.4,0.489]
[1765503767136,6.74379979,3245.1,3244.5,0.489]
[1765503768236,3.66213754,3245.1,3244.3,0.6496]
[1765503768407,3.66213754,3245.1,3244.6,0.489]
[1765503769518,6.74379979,3245.1,3244.6,0.489]
[1765503769816,3.66213754,3245.1,3244.7,0.489]
[1765503770721,6.74379979,3245.1,3244.7,0.489]
[1765503775325,3.66213754,3245.1,3244.7,0.489]
[1765503775839,6.74379979,3245.1,3244.3,0.4685]
[1765503776008,6.74379979,3245.1,3244.1,0.1973]
[1765503776359,6.74379979,3245.1,3244.4,0.489]
[1765503776933,6.74379979,3245.1,3244.1,0.6658]
[1765503777103,0.489,3245.0,3244.4,0.489]
[1765503777945,0.58047529,3244.8,3244.4,0.489]
[1765503780038,0.58047529,3244.6,3244.4,0.489]
[1765503780735,0.58047529,3244.6,3244.5,0.489]
[1765503781240,0.58047529,3244.6,3244.1,0.489]
[1765503781536,1.50615122,3244.6,3243.7,0.4685]
[1765503781839,1.50615122,3244.6,3244.1,0.489]
[1765503782437,0.58047529,3244.4,3244.1,0.489]
[1765503783923,0.58047529,3244.4,3243.9,0.4685]
[1765503784118,3.66255298,3244.6,3244.3,0.4778]
[1765503784337,3.66255298,3244.6,3243.9,0.4685]
[1765503784543,3.66255298,3244.6,3244.0,0.489]
[1765503785153,6.74463067,3244.6,3244.1,0.489]
[1765503785448,4.5882232,3244.6,3244.2,0.489]
[1765503786820,4.5882232,3244.6,3243.8,3.55125966]
[1765503787026,4.5882232,3244.6,3243.9,0.489]
[1765503787915,7.67030089,3244.6,3244.0,0.489]
[1765503789416,7.67030089,3244.6,3243.6,3.08298408]
[1765503789624,7.67030089,3244.6,3243.2,0.1811]
[1765503789625,0.28300997,3244.5,3243.2,0.1811]
[1765503789828,0.28300997,3244.3,3243.3,0.489]
[1765503790133,0.28300997,3244.3,3243.4,0.489]
[1765503790447,0.28300997,3244.3,3243.0,0.4685]
[1765503790642,0.28300997,3244.3,3243.1,0.489]
[1765503791050,0.28300997,3244.3,3242.9,0.1973]
[1765503791051,0.28300997,3244.1,3242.9,0.1973]
[1765503791221,0.28300997,3244.1,3243.0,0.489]
[1765503791427,0.58047529,3243.9,3243.0,0.489]
[1765503791669,0.58047529,3243.9,3242.9,0.1973]
[1765503791670,0.58047529,3243.9,3243.1,0.489]
[1765503792248,0.92592449,3243.8,3243.1,0.489]
[1765503793454,0.58047529,3243.6,3243.1,0.489]
[1765503793962,0.58047529,3243.6,3243.1,0.9831]
[1765503795226,0.58047529,3243.6,3243.2,0.489]
[1765503796160,3.08302432,3243.6,3243.2,0.489]
[1765503796765,0.58047529,3243.5,3242.4,0.4765]
[1765503796933,0.58047529,3243.5,3242.5,0.489]
[1765503797133,1.50647123,3243.5,3242.5,0.489]
[1765503797331,0.58047529,3243.5,3242.6,0.4765]
[1765503798028,0.58047529,3243.3,3242.6,0.4765]
[1765503798229,0.58047529,3243.3,3242.2,0.4765]
[1765503798541,0.58047529,3243.3,3242.3,0.489]
[1765503798748,0.58047529,3243.3,3242.4,0.489]
[1765503800062,0.58047529,3243.1,3242.4,0.489]
[1765503800831,0.58047529,3243.1,3242.4,0.9655]
[1765503801269,0.58047529,3243.1,3242.5,0.4765]
[1765503802255,3.08308925,3243.5,3242.5,3.56053914]
[1765503802470,0.58047529,3243.4,3242.5,0.4765]
[1765503802766,0.58047529,3243.4,3242.6,0.4765]
[1765503803135,0.58047529,3243.4,3242.7,0.489]
[1765503804532,0.58047529,3243.2,3242.7,0.489]
[1765503805137,0.58047529,3243.2,3242.7,0.9655]
[1765503806239,0.58047529,3243.2,3242.7,0.489]
[1765503806672,0.58047529,3243.0,3242.7,0.489]
[1765503807056,0.58047529,3243.1,3242.7,0.489]
[1765503807254,1.2537296,3243.6,3243.0,0.4862]
[1765503807566,0.58047529,3243.4,3242.7,0.4765]
[1765503807872,0.58047529,3243.4,3242.8,0.489]
[1765503808085,0.58047529,3243.4,3242.7,0.4765]
[1765503808239,0.58047529,3243.4,3242.4,0.4765]
[1765503808240,5.70839467,3243.2,3242.4,0.4765]
[1765503808442,5.70839467,3243.2,3242.7,0.489]
[1765503808657,5.70839467,3243.2,3242.4,0.4765]
[1765503808658,0.58047529,3243.0,3242.1,0.1993]
[1765503808972,5.70839467,3242.6,3242.2,0.489]
[1765503809274,5.70839467,3242.6,3241.5,3.08497153]
[1765503809452,5.70839467,3242.6,3241.6,0.489]
[1765503809653,5.70839467,3242.6,3241.6,0.9655]
[1765503809968,0.58047529,3242.2,3241.7,0.489]
[1765503810572,0.58047529,3242.2,3241.7,0.9655]
[1765503811071,3.66480479,3242.2,3241.8,0.489]
[1765503811251,3.66480479,3242.2,3241.7,0.4765]
[1765503811449,3.66480479,3242.2,3241.8,0.489]
[1765503812373,6.74913429,3242.2,3241.8,0.489]
[1765503813665,6.74913429,3242.2,3241.4,0.4765]
[1765503813867,6.74913429,3242.2,3241.5,0.489]
[1765503814066,0.58047529,3241.9,3241.4,0.4765]
[1765503814382,0.58047529,3241.9,3241.0,0.4765]
[1765503814582,0.58047529,3241.9,3241.1,0.6814]
[1765503815082,0.58047529,3241.9,3241.2,0.4765]
[1765503815455,0.58047529,3241.7,3241.2,0.4765]
[1765503815656,0.58047529,3241.9,3241.3,0.489]
[1765503815876,8.79293656,3242.0,3241.3,0.489]
[1765503815877,0.58047529,3242.0,3241.3,0.489]
[1765503816079,0.58047529,3242.0,3241.9,0.4862]
[1765503816576,0.58047529,3242.1,3241.9,0.9627]
[1765503816873,0.58047529,3242.2,3242.0,0.4862]
[1765503817079,0.58047529,3242.2,3242.0,0.9627]
[1765503817280,0.58047529,3242.2,3242.1,0.4862]
[1765503817652,0.58047529,3242.2,3242.1,1.1551]
[1765503817850,0.58047529,3242.1,3241.9,0.1924]
[1765503818349,0.58047529,3242.1,3242.0,0.4862]
[1765503819887,5.70839467,3242.6,3242.0,0.4862]
[1765503820051,3.66451538,3242.5,3242.0,0.4862]
[1765503820383,3.66451538,3242.5,3242.0,0.9627]
[1765503820756,3.66451538,3242.5,3242.1,0.4765]
[1765503820951,3.08375477,3242.8,3242.4,0.4862]
[1765503821156,0.58047529,3242.7,3242.4,0.4862]
[1765503821377,0.58047529,3242.7,3242.4,0.9627]
[1765503821891,3.66436137,3242.7,3242.6,0.4862]
[1765503822862,0.58047529,3242.6,3242.3,0.49]
[1765503823062,0.58047529,3242.6,3242.3,0.9654]
[1765503823581,0.58047529,3242.6,3242.5,0.4583]
[1765503823988,0.58047529,3242.6,3242.5,0.9337]
[1765503824192,3.66423767,3242.8,3242.5,0.9337]
[1765503824370,3.66423767,3242.8,3242.6,0.4583]
[1765503825390,3.66423767,3242.8,3242.7,0.49]
[1765503829990,3.66423767,3242.8,3242.7,1.4237]
[1765503830292,3.66423767,3242.8,3242.7,0.49]
[1765503831176,3.66423767,3242.8,3242.6,0.489]
[1765503831375,3.66423767,3242.8,3241.6,0.1871]
[1765503831376,0.58047529,3242.6,3241.6,0.1871]
[1765503831606,0.58047529,3242.0,3241.6,0.1871]
[1765503831809,5.70839467,3241.8,3241.2,0.4754]
[1765503831969,5.70839467,3241.8,3240.9,3.08647873]
[1765503831970,1.03222906,3241.7,3240.9,0.001]
[1765503832175,0.58047529,3241.7,3241.2,0.489]
[1765503832696,1.50695452,3242.2,3241.2,0.489]
[1765503832873,0.58047529,3242.0,3241.2,0.489]
[1765503833800,0.58047529,3242.0,3240.9,0.001]
[1765503833974,0.58047529,3242.0,3241.2,0.489]
[1765503834182,0.58047529,3242.0,3240.9,0.4764]
[1765503834486,0.58047529,3242.0,3241.0,0.489]
[1765503834701,0.58047529,3242.0,3241.0,0.9644]
[1765503835196,0.58047529,3241.8,3240.9,0.001]
[1765503835401,0.58047529,3241.8,3241.0,0.489]
[1765503837095,0.58047529,3241.8,3240.9,0.001]
[1765503837281,6.16960236,3241.7,3241.0,0.49]
[1765503838107,6.16960236,3241.7,3240.9,0.001]
[1765503838605,6.16960236,3241.7,3241.0,0.49]
[1765503838791,6.16960236,3241.7,3240.9,0.001]
[1765503838986,6.16960236,3241.7,3241.0,0.49]
[1765503840013,6.16960236,3241.7,3240.9,0.001]
[1765503840176,6.16960236,3241.7,3240.9,0.491]
[1765503840374,6.16960236,3241.7,3240.9,0.9664]
[1765503840989,6.16960236,3241.7,3241.0,0.49]
[1765503841804,6.16960236,3241.7,3240.9,0.001]
[1765503843009,0.58047529,3241.6,3240.9,0.001]
[1765503843212,0.58047529,3241.4,3240.9,0.001]
[1765503843986,1.07047529,3241.4,3240.9,0.001]
[1765503844910,0.58047529,3241.2,3240.9,0.001]
[1765503846612,3.08537225,3241.1,3240.9,0.001]
[1765503847603,3.66584754,3241.1,3241.0,0.4583]
[1765503847782,3.66584754,3241.1,3240.9,0.001]
[1765503848187,0.58047529,3241.1,3241.0,0.4583]
[1765503848632,0.58047529,3241.0,3240.9,0.001]
[1765503849300,0.86348526,3241.0,3240.9,0.001]
[1765503850917,3.9489527,3241.0,3240.9,0.001]
[1765503851589,11.08114961,3241.0,3240.9,0.001]
[1765503852621,11.20472444,3241.0,3240.9,0.001]
[1765503852929,11.08114961,3241.0,3240.9,0.001]
[1765503853099,0.405504,3240.9,3240.5,0.001]
[1765503853298,40.47450449,3241.0,3240.5,0.001]
[1765503853299,0.68851397,3240.6,3240.5,0.001]
[1765503853503,1.17851397,3240.6,3240.5,0.001]
[1765503854394,1.30211744,3240.6,3240.5,0.001]
[1765503854923,7.60359593,3240.6,3240.5,0.001]
[1765503855694,10.68944422,3240.6,3240.5,0.001]
[1765503856720,10.68944422,3240.6,3240.0,0.001]
[1765503856721,0.98597929,3240.5,3240.0,0.001]
[1765503856920,12.30549166,3240.1,3240.0,0.001]
[1765503857591,15.39181615,3240.1,3240.0,0.001]
[1765503859194,0.58047529,3240.0,3239.3,0.001]
[1765503859524,6.58448846,3239.7,3239.3,0.001]
[1765503859727,10.16119401,3239.7,3239.3,0.001]
[1765503863123,9.87818404,3239.7,3239.3,0.001]
[1765503865432,9.87818404,3239.7,3238.5,0.001]
[1765503865433,15.03968729,3239.6,3238.5,0.001]
[1765503865620,6.30147849,3238.9,3238.5,0.001]
[1765503865828,6.79147849,3238.9,3238.5,0.001]
[1765503866224,0.58047529,3238.6,3238.1,0.001]
[1765503866424,12.02248169,3238.2,3238.1,0.001]
[1765503866636,9.38961387,3238.2,3238.1,0.001]
[1765503866838,9.38961387,3238.2,3238.1,0.4693]
[1765503867036,9.38961387,3238.2,3238.1,1.1268]
[1765503867219,9.38961387,3238.2,3238.1,0.001]
[1765503868141,9.38961387,3238.2,3238.1,0.4693]
[1765503868369,9.38961387,3238.2,3238.1,0.001]
[1765503868755,9.87961387,3238.2,3238.1,0.001]
[1765503869060,15.60061707,3238.2,3238.1,0.001]
[1765503869257,0.58047529,3238.1,3237.9,0.001]
[1765503869563,0.28300997,3238.0,3237.9,0.001]
[1765503869727,0.49,3238.0,3237.9,0.001]
[1765503869925,6.79147849,3238.0,3237.9,0.4693]
[1765503870263,6.79147849,3238.0,3237.9,0.9461]
[1765503870943,9.87980461,3238.0,3237.9,0.9461]
[1765503871422,9.87980461,3238.0,3237.9,0.4693]
[1765503871622,9.87980461,3238.0,3237.9,0.001]
[1765503872217,15.60080781,3238.0,3237.9,0.001]
[1765503873748,15.60080781,3238.0,3237.9,0.4693]
[1765503874041,15.60080781,3238.0,3237.9,0.001]
[1765503874844,4.15880141,3238.0,3237.9,0.001]
[1765503877619,4.15880141,3238.0,3237.9,0.9461]
[1765503879741,4.15880141,3238.0,3237.9,0.4693]
[1765503880056,4.15880141,3238.0,3237.9,0.001]
[1765503880252,4.15880141,3238.0,3237.9,0.4693]
[1765503881551,4.15880141,3238.0,3237.9,0.9461]
[1765503881844,4.15880141,3238.0,3237.9,0.001]
[1765503882223,4.48220429,3237.9,3237.7,0.001]
[1765503882425,12.78488357,3237.9,3237.7,0.001]
[1765503882725,11.40035457,3237.9,3237.7,0.001]
[1765503883221,10.62894357,3237.9,3237.7,0.001]
[1765503883425,11.27524457,3237.9,3237.7,0.001]
[1765503884450,16.95762407,3237.9,3237.7,0.001]
[1765503884653,14.47847807,3237.9,3237.7,0.001]
[1765503885250,13.49249878,3237.9,3237.7,0.001]
[1765503885448,17.52896578,3237.9,3237.7,0.001]
[1765503885641,18.063402,3237.8,3236.8,0.6643]
[1765503885838,0.28300997,3237.2,3236.8,0.6643]
[1765503886045,0.49,3237.1,3236.8,0.6643]
[1765503886350,6.46157035,3237.0,3236.5,0.4686]
[1765503886550,6.46157035,3237.0,3236.7,0.4686]
[1765503886922,3.37229016,3237.0,3236.9,0.4764]
[1765503887126,3.95276545,3237.0,3236.9,0.4764]
[1765503887322,3.66975548,3237.0,3236.9,0.945]
[1765503889153,4.15975548,3237.0,3236.9,0.945]
[1765503889854,0.58047529,3236.9,3236.5,0.4686]
[1765503890024,0.58047529,3236.9,3236.7,0.4686]
[1765503890227,0.58047529,3236.9,3236.8,0.4764]
[1765503891953,0.49,3236.9,3236.8,0.4764]
[1765503892256,0.49,3236.9,3236.8,0.945]
[1765503894335,3.57937563,3236.9,3236.8,0.4764]
[1765503894560,0.58047529,3236.8,3236.4,0.4686]
[1765503894773,6.312346,3236.7,3236.6,0.4696]
[1765503895165,0.58047529,3236.7,3236.6,0.946]
[1765503895479,1.07047529,3236.7,3236.6,0.946]
[1765503896752,4.16004182,3236.7,3236.6,0.946]
[1765503897664,4.16004182,3236.7,3236.6,0.4774]
[1765503897972,3.67004182,3236.7,3236.6,0.4774]
[1765503898277,4.16004182,3236.7,3236.6,0.946]
[1765503900358,0.58047529,3236.7,3236.6,0.946]
[1765503900544,4.16004182,3236.7,3236.6,0.946]
[1765503901050,1.07047529,3236.7,3236.6,0.946]
[1765503901451,6.17760616,3237.5,3236.6,0.946]
[1765503901675,1.07047529,3237.4,3236.7,0.87217463]
[1765503902044,1.07047529,3237.4,3237.3,0.6721]
[1765503902474,0.49,3237.4,3237.3,1.1407]
[1765503902846,0.58047529,3237.4,3237.3,1.1407]
[1765503903059,4.15937378,3237.4,3237.3,1.1407]
[1765503903570,1.07047529,3237.4,3237.3,1.1407]
[1765503903973,4.15937378,3237.4,3237.3,1.1407]
[1765503904974,0.58047529,3237.4,3237.3,1.1407]
[1765503905172,4.15937378,3237.4,3237.3,1.1407]
[1765503905381,1.07047529,3237.4,3237.3,1.1407]
[1765503905569,4.15937378,3237.4,3237.3,1.1407]
[1765503905966,0.58047529,3237.4,3237.3,1.1407]
[1765503906481,0.58047529,3237.4,3237.3,1.56368751]
[1765503906653,0.58047529,3237.4,3237.3,1.1407]
[1765503908393,0.49,3237.7,3237.3,1.1407]
[1765503908559,4.15909803,3237.7,3237.6,0.4764]
[1765503908981,4.15909803,3237.7,3237.6,0.945]
[1765503909348,0.58047529,3237.7,3237.6,0.945]
[1765503909782,3.08805319,3238.3,3237.6,0.945]
[1765503909948,6.75674605,3238.2,3237.7,0.945]
[1765503910148,7.24674605,3238.2,3237.7,0.945]
[1765503910371,4.15861067,3238.2,3238.1,0.4764]
[1765503911679,4.15861067,3238.2,3238.1,1.1407]
[1765503911977,0.58047529,3238.2,3238.1,1.1407]
[1765503913950,9.84488143,3238.2,3236.9,0.4727]
[1765503914186,0.58047529,3237.6,3237.1,0.4727]
[1765503914373,0.49,3237.6,3237.1,0.4727]
[1765503914570,0.49,3237.6,3237.5,0.4857]
[1765503914778,1.07047529,3237.6,3236.6,0.4737]
[1765503914981,0.73476374,3237.5,3237.0,0.6684]
[1765503915288,0.49,3237.6,3237.0,0.6684]
[1765503915484,0.49,3237.6,3237.1,0.4835]
[1765503915795,6.17627076,3238.2,3237.5,0.4638]
[1765503915967,3.08813538,3238.2,3238.1,0.656]
[1765503916372,3.08806326,3238.3,3238.1,1.1395]
[1765503916566,3.08996933,3238.4,3238.2,0.9473]
[1765503916885,3.67044462,3238.4,3238.3,0.4638]
[1765503917086,3.67044462,3238.4,3238.3,0.9473]
[1765503918491,0.58047529,3238.3,3238.1,0.1922]
[1765503918690,0.58047529,3238.3,3237.0,0.1957]
[1765503918691,0.58047529,3238.3,3237.7,0.4835]
[1765503919490,0.58047529,3238.3,3238.2,0.656]
[1765503919797,0.58047529,3238.3,3238.2,0.4638]
[1765503920289,3.66851531,3238.3,3238.2,0.4638]
[1765503920488,3.66851531,3238.3,3238.2,0.9473]
[1765503921879,3.66851531,3238.3,3238.2,0.4638]
[1765503922461,3.66851531,3238.3,3238.2,0.9473]
[1765503922868,0.58047529,3238.3,3238.2,0.9473]
[1765503923093,0.002,3238.4,3238.2,0.9473]
[1765503923292,0.002,3238.4,3238.3,0.9473]
[1765503923608,0.002,3238.8,3238.3,0.9473]
[1765503923763,0.002,3238.8,3238.7,0.4638]
[1765503924286,0.002,3238.8,3238.7,0.9473]
[1765503924799,0.002,3238.8,3238.7,4.44046262]
[1765503927990,0.002,3238.8,3238.7,4.93046262]
[1765503930098,0.002,3238.8,3238.7,5.51093791]
[1765503930395,0.002,3238.8,3238.7,6.3708164]
[1765503933697,0.002,3238.8,3238.7,13.8471222]
[1765503933903,0.002,3238.8,3238.7,5.8808164]
[1765503934203,0.002,3238.8,3238.7,5.79034111]
[1765503934376,0.002,3238.8,3238.7,5.38483711]
[1765503934577,0.002,3238.8,3238.7,5.79034111]
[1765503935783,0.002,3238.8,3238.7,5.30034111]
[1765503935988,0.002,3238.8,3238.7,5.79034111]
[1765503936778,0.002,3238.8,3238.7,5.30034111]
[1765503937086,0.002,3238.8,3238.7,5.79034111]
[1765503937680,0.002,3238.8,3238.7,5.30034111]
[1765503937882,0.002,3238.8,3238.7,4.89483711]
[1765503938086,0.002,3238.8,3238.7,5.38483711]
[1765503938283,0.002,3238.8,3238.7,4.89483711]
[1765503938483,0.002,3238.8,3238.7,5.38483711]
[1765503940109,0.002,3238.8,3238.7,5.79034111]
[1765503940304,0.002,3239.1,3238.8,0.405504]
[1765503940500,0.002,3239.3,3239.0,0.869304]
[1765503940710,0.002,3239.3,3239.2,1.061504]
[1765503941097,0.002,3239.3,3239.2,1.545004]
[1765503941814,0.002,3239.3,3239.2,2.035004]
[1765503943094,0.002,3239.3,3239.2,5.12218602]
[1765503943289,0.002,3239.3,3239.2,5.06684996]
[1765503943501,0.002,3239.3,3239.2,5.55684996]
[1765503944108,0.002,3239.3,3239.2,5.96235396]
[1765503944310,0.002,3239.3,3239.2,5.99322578]
[1765503945090,0.002,3239.3,3239.2,5.96235396]
[1765503947386,0.002,3239.3,3239.2,5.99322578]
[1765503947692,0.002,3239.3,3239.2,12.04753107]
[1765503948009,0.002,3239.3,3239.2,25.96109725]
[1765503948183,0.002,3239.3,3239.2,25.37881225]
[1765503948580,0.002,3239.3,3239.2,23.92285125]
[1765503948781,0.002,3239.3,3239.2,23.37165125]
[1765503949013,0.002,3239.3,3239.2,6.54282925]
[1765503949202,0.002,3239.3,3239.2,19.42006925]
[1765503949404,0.002,3239.3,3239.2,19.91006925]
[1765503949809,0.002,3239.3,3239.2,17.03937025]
[1765503950129,0.002,3239.3,3239.2,17.03804325]
[1765503950423,0.002,3240.4,3239.7,0.405504]
[1765503950626,0.002,3240.4,3239.6,0.471]
[1765503950627,0.002,3240.4,3239.9,0.876504]
[1765503950790,0.002,3240.4,3239.9,1.0623944]
[1765503951128,0.002,3240.4,3239.9,1.366504]
[1765503951698,0.002,3240.4,3239.9,3.98201901]
[1765503951893,0.002,3240.4,3239.9,4.45301901]
[1765503952094,0.002,3240.4,3239.9,4.94541901]
[1765503952799,0.002,3240.4,3239.9,4.45301901]
[1765503953103,0.002,3240.4,3239.9,4.73598357]
[1765503953627,0.002,3240.4,3239.9,5.20698357]
[1765503957605,0.002,3240.4,3239.9,4.71698357]
[1765503957937,0.002,3240.4,3239.9,5.20698357]
[1765503961230,0.002,3240.4,3239.9,5.20938357]
[1765503961429,0.002,3240.4,3239.2,1.03236794]
[1765503961635,0.002,3240.4,3239.7,3.08668717]
[1765503961939,0.002,3240.4,3239.8,0.489]
[1765503962955,0.002,3240.4,3239.3,6.17417342]
[1765503963120,0.002,3240.4,3239.4,0.894504]
[1765503963555,0.002,3240.4,3239.5,0.489]
[1765503964648,0.002,3240.4,3239.4,0.489]
[1765503964649,0.58047529,3240.3,3239.4,0.489]
[1765503964819,0.58247529,3240.1,3238.8,3.08755492]
[1765503965148,0.58047529,3239.9,3238.9,0.489]
[1765503966652,0.58047529,3239.9,3239.0,0.489]
[1765503967147,0.58047529,3239.7,3238.1,0.6846]
[1765503967348,0.58047529,3239.7,3236.7,3.09048381]
[1765503967349,14.080771,3239.7,3237.9,3.08839341]
[1765503967547,14.080771,3239.7,3238.0,0.489]
[1765503967767,14.080771,3239.7,3238.0,3.57729681]
[1765503968264,0.28300997,3239.6,3238.0,0.489]
[1765503968426,7.14029571,3239.2,3238.1,0.489]
[1765503968761,0.58047529,3239.1,3238.1,0.489]
[1765503969253,6.17474528,3239.0,3238.1,0.489]
[1765503970926,6.17474528,3239.0,3237.8,3.58089702]
[1765503971125,6.17474528,3239.0,3238.2,0.49]
[1765503972354,9.26211792,3239.0,3238.2,0.49]
[1765503972724,0.58047529,3238.9,3237.1,0.001]
[1765503972925,0.58047529,3238.6,3237.1,0.001]
[1765503973152,0.58047529,3238.6,3237.2,0.49]
[1765503973357,6.17569862,3238.5,3237.2,3.57905728]
[1765503973553,9.26354793,3238.5,3237.1,0.001]
[1765503973760,0.58047529,3238.4,3237.1,0.001]
[1765503973960,0.58047529,3238.4,3237.2,0.49]
[1765503974426,0.58047529,3238.1,3237.2,0.49]
[1765503974627,0.58047529,3238.1,3237.1,0.491]
[1765503975739,9.26497836,3238.0,3237.1,0.491]
[1765503976066,6.17665224,3238.0,3237.1,0.491]
[1765503976275,6.17665224,3238.0,3237.1,0.685]
[1765503977276,6.17665224,3238.0,3237.1,0.491]
[1765503977559,9.26497836,3238.0,3237.1,0.491]
[1765503978575,9.75597836,3238.0,3237.1,0.491]
[1765503980160,0.58047529,3237.9,3237.1,0.001]
[1765503980458,7.14029571,3237.7,3237.1,0.001]
[1765503980756,0.58047529,3237.9,3237.1,0.001]
[1765503981935,0.58047529,3237.7,3237.1,0.001]
[1765503984158,0.58047529,3237.5,3237.1,0.001]
[1765503986263,0.58047529,3237.3,3237.1,0.001]
[1765503988367,3.66956462,3237.2,3237.1,0.001]
[1765503990244,3.7932713,3237.2,3237.1,0.001]
[1765503996640,4.2832713,3237.2,3237.1,0.001]
[1765503996845,11.7419213,3237.2,3237.1,0.001]
[1765503997040,9.8415113,3237.2,3237.1,0.001]
[1765503997247,10.2470153,3237.2,3237.1,0.001]
[1765503997953,4.6887753,3237.2,3237.1,0.001]
[1765504000076,4.6887753,3237.2,3236.8,0.001]
[1765504000077,0.98597929,3237.1,3236.8,0.001]
[1765504000272,8.00378097,3236.9,3236.8,0.001]
[1765504000745,0.70420991,3236.9,3236.8,0.001]
[1765504000946,0.58047529,3236.9,3236.8,0.9064]
[1765504001141,0.58047529,3236.9,3236.8,0.001]
[1765504001782,3.66985092,3236.9,3236.8,0.001]
[1765504002663,3.79357673,3236.9,3236.8,0.001]
[1765504004759,9.52642438,3236.9,3236.8,0.001]
[1765504005956,10.01642438,3236.9,3236.8,0.001]
[1765504007172,10.42192838,3236.9,3236.8,0.001]
[1765504009179,10.42192838,3236.9,3236.7,0.001]
[1765504009180,0.98597929,3236.8,3236.7,0.001]
[1765504009380,0.58047529,3236.2,3235.3,0.4748]
[1765504009685,1.07047529,3236.2,3235.3,0.4748]
[1765504009980,1.1942256,3236.2,3235.3,0.4748]
[1765504010152,4.28426947,3236.2,3235.3,0.4748]
[1765504010352,3.79426947,3236.2,3235.3,0.001]
[1765504010553,10.01711712,3236.2,3236.1,0.6367]
[1765504010765,10.01711712,3236.2,3236.1,0.001]
[1765504010766,4.28426947,3236.2,3236.1,0.001]
[1765504011583,4.56602316,3236.2,3236.1,0.001]
[1765504011768,17.98699808,3236.2,3236.1,0.001]
[1765504011967,0.405504,3235.9,3235.3,0.001]
[1765504012282,3.67109217,3235.6,3235.3,0.001]
[1765504012786,4.16109217,3235.6,3235.3,0.001]
[1765504015268,4.56659617,3235.6,3235.3,0.001]
[1765504016692,3.67109217,3235.6,3235.3,0.001]
[1765504016893,4.16109217,3235.6,3235.3,0.001]
[1765504017674,4.28487427,3235.6,3235.3,0.001]
[1765504018466,4.69037827,3235.6,3235.3,0.001]
[1765504018796,0.405504,3235.3,3234.0,0.6678]
[1765504018975,7.15561892,3234.8,3234.1,0.4738]
[1765504019305,1.07047529,3234.7,3234.1,0.4738]
[1765504019482,0.58047529,3234.5,3234.1,0.4738]
[1765504020399,0.58047529,3234.5,3234.4,0.4505]
[1765504020606,1.07047529,3234.5,3234.4,0.4505]
[1765504020786,1.07047529,3234.5,3234.4,0.9243]
[1765504021103,1.07047529,3234.5,3234.4,0.4505]
[1765504021298,1.07047529,3234.5,3234.0,0.194]
[1765504021505,0.58047529,3234.2,3234.0,0.6678]
[1765504021708,0.49,3234.1,3234.0,0.6678]